bitfinex/quotes_BTCUSD_20250212
["timestamp","ask_amount","ask_price","bid_price","bid_amount"]
[1739322650455,0.36237861,96205.0,96189.0,0.0454]
[1739322651286,0.342917,96205.0,96189.0,0.0454]
[1739322653256,0.37808257,96205.0,96189.0,0.0454]
[1739322653865,0.39753452,96205.0,96189.0,0.0454]
[1739322654439,0.39753452,96205.0,96201.0,0.083]
[1739322655318,0.09161752,96205.0,96201.0,0.083]
[1739322655638,0.20508257,96205.0,96201.0,0.083]
[1739322658812,0.35508257,96205.0,96201.0,0.083]
[1739322665647,0.35508257,96205.0,96191.0,0.0816]
[1739322666247,0.305934,96194.0,96191.0,0.0816]
[1739322666448,0.305934,96194.0,96189.0,0.0454]
[1739322667650,0.32541829,96194.0,96189.0,0.0454]
[1739322668331,0.32641829,96194.0,96189.0,0.0454]
[1739322668734,0.32741829,96194.0,96189.0,0.0454]
[1739322669188,0.315934,96194.0,96189.0,0.0454]
[1739322669413,0.3518032,96194.0,96189.0,0.0454]
[1739322669900,0.3558032,96194.0,96189.0,0.0454]
[1739322671020,0.37209555,96194.0,96189.0,0.0454]
[1739322671505,0.39337262,96194.0,96189.0,0.0454]
[1739322673064,0.37209555,96194.0,96189.0,0.0454]
[1739322676276,0.37209555,96194.0,96193.0,8.6e-07]
[1739322677077,0.35809555,96194.0,96193.0,8.6e-07]
[1739322677483,0.37709555,96194.0,96193.0,8.6e-07]
[1739322678010,0.36409555,96194.0,96193.0,8.6e-07]
[1739322678351,0.37509555,96194.0,96193.0,8.6e-07]
[1739322679258,0.3758032,96194.0,96193.0,8.6e-07]
[1739322679540,0.3808032,96194.0,96193.0,8.6e-07]
[1739322679744,0.2248692,96194.0,96169.0,0.0757]
[1739322679945,0.30597,96172.0,96169.0,0.0757]
[1739322683099,0.30697,96172.0,96169.0,0.0757]
[1739322684590,0.33801319,96172.0,96169.0,0.0757]
[1739322686326,0.33801319,96172.0,96171.0,0.08]
[1739322686542,0.33801319,96172.0,96171.0,0.18250365]
[1739322686741,0.33801319,96172.0,96171.0,0.22960365]
[1739322687588,0.30697,96172.0,96171.0,0.22960365]
[1739322687806,0.151,96172.0,96171.0,0.22960365]
[1739322688180,0.03128374,96176.0,96171.0,0.10270365]
[1739322688388,0.207956,96174.0,96173.0,0.1269]
[1739322688589,0.363923,96174.0,96173.0,0.22940365]
[1739322690058,0.365923,96174.0,96173.0,0.22940365]
[1739322691162,0.363923,96174.0,96173.0,0.1269]
[1739322692096,0.363923,96174.0,96173.0,0.1270067]
[1739322692484,0.364923,96174.0,96173.0,0.1270067]
[1739322693111,0.363923,96174.0,96173.0,0.1270067]
[1739322693371,0.38742061,96174.0,96173.0,0.1270067]
[1739322693546,0.39042061,96174.0,96173.0,0.1270067]
[1739322693771,0.38742061,96174.0,96173.0,0.1270067]
[1739322693886,0.39042061,96174.0,96173.0,0.1270067]
[1739322696958,0.38742061,96174.0,96173.0,0.1270067]
[1739322697188,0.38542061,96174.0,96173.0,0.1270067]
[1739322697385,0.39042061,96174.0,96173.0,0.0472067]
[1739322697897,0.39042061,96174.0,96173.0,0.0001067]
[1739322698622,0.38542061,96174.0,96173.0,0.0001067]
[1739322699036,0.42063767,96174.0,96173.0,0.0001067]
[1739322699237,0.56863767,96174.0,96173.0,0.0001067]
[1739322699475,0.56463767,96174.0,96173.0,0.0001067]
[1739322699677,0.57563767,96174.0,96173.0,0.0001067]
[1739322700638,0.57263767,96174.0,96173.0,0.0001067]
[1739322700848,0.57663767,96174.0,96173.0,0.0001067]
[1739322701611,0.54542061,96174.0,96173.0,0.0001067]
[1739322702256,0.54142061,96174.0,96173.0,0.0001067]
[1739322702623,0.54542061,96174.0,96173.0,0.0001067]
[1739322702924,0.53742061,96174.0,96173.0,0.0001067]
[1739322703124,0.54642061,96174.0,96173.0,0.0001067]
[1739322703868,0.56271652,96174.0,96173.0,0.0001067]
[1739322704875,0.54642061,96174.0,96173.0,0.0001067]
[1739322705128,0.54664448,96174.0,96173.0,0.0001067]
[1739322706798,0.53764448,96174.0,96173.0,0.0001067]
[1739322707008,0.54264448,96174.0,96173.0,0.0001067]
[1739322707234,0.56964448,96174.0,96173.0,0.0001067]
[1739322708224,0.58594038,96174.0,96173.0,0.0001067]
[1739322709088,0.56294038,96174.0,96173.0,0.0001067]
[1739322710561,0.54994038,96174.0,96173.0,0.0001067]
[1739322710898,0.54544277,96174.0,96173.0,0.0001067]
[1739322712078,0.54044277,96174.0,96173.0,0.0001067]
[1739322712286,0.54544277,96174.0,96173.0,0.0001067]
[1739322712489,0.53544277,96174.0,96173.0,0.0001067]
[1739322712711,0.54044277,96174.0,96173.0,0.0001067]
[1739322713097,0.56493657,96174.0,96173.0,0.0001067]
[1739322713305,0.55493657,96174.0,96173.0,0.0001067]
[1739322713507,0.56493657,96174.0,96173.0,0.0001067]
[1739322715689,0.54544277,96174.0,96173.0,0.0001067]
[1739322715886,0.54544277,96174.0,96173.0,0.1235067]
[1739322716087,0.54044277,96174.0,96173.0,0.1235067]
[1739322716469,0.54544277,96174.0,96173.0,0.1235067]
[1739322716685,0.53544277,96174.0,96173.0,0.1235067]
[1739322716887,0.54444277,96174.0,96173.0,0.1235067]
[1739322717104,0.54844277,96174.0,96173.0,0.1235067]
[1739322717513,0.53444277,96174.0,96173.0,0.1235067]
[1739322718848,0.54344277,96174.0,96173.0,0.1235067]
[1739322720120,0.53444277,96174.0,96173.0,0.1235067]
[1739322720742,0.54344277,96174.0,96173.0,0.1235067]
[1739322721884,0.53444277,96174.0,96173.0,0.1235067]
[1739322722316,0.54044277,96174.0,96173.0,0.1235067]
[1739322722509,0.53644277,96174.0,96173.0,0.1235067]
[1739322722855,0.54144277,96174.0,96173.0,0.1235067]
[1739322723057,0.53644277,96174.0,96173.0,0.1235067]
[1739322723281,0.37014687,96174.0,96173.0,0.1235067]
[1739322723452,0.37314687,96174.0,96173.0,0.1235067]
[1739322723657,0.52314687,96174.0,96173.0,0.1235067]
[1739322724256,0.52014687,96174.0,96173.0,0.1235067]
[1739322724544,0.52114687,96174.0,96173.0,0.1235067]
[1739322724970,0.51514687,96174.0,96173.0,0.1235067]
[1739322725364,0.51814687,96174.0,96173.0,0.1235067]
[1739322725809,0.51414687,96174.0,96173.0,0.1235067]
[1739322726222,0.51514687,96174.0,96173.0,0.1235067]
[1739322726430,0.51414687,96174.0,96173.0,0.1235067]
[1739322726632,0.51514687,96174.0,96173.0,0.1235067]
[1739322727241,0.51388609,96174.0,96173.0,0.1235067]
[1739322727442,0.51288609,96174.0,96173.0,0.1235067]
[1739322727782,0.51388609,96174.0,96173.0,0.1235067]
[1739322729011,0.51338177,96174.0,96173.0,0.1245067]
[1739322729696,0.51338177,96174.0,96173.0,0.1235067]
[1739322729891,0.51238177,96174.0,96173.0,0.1235067]
[1739322730459,0.51338177,96174.0,96173.0,0.1235067]
[1739322731679,0.51338177,96174.0,96173.0,0.1245067]
[1739322732099,0.51238177,96174.0,96173.0,0.1245067]
[1739322732258,0.51338177,96174.0,96173.0,0.1245067]
[1739322738388,0.51338177,96174.0,96173.0,0.1235067]
[1739322738799,0.51338177,96174.0,96173.0,0.1245067]
[1739322739695,0.51238177,96174.0,96173.0,0.1245067]
[1739322740020,0.51338177,96174.0,96173.0,0.1245067]
[1739322747445,0.51322448,96174.0,96173.0,0.1245067]
[1739322762819,0.00122387,96174.0,96173.0,0.22701035]
[1739322763409,0.15719087,96174.0,96173.0,0.22701035]
[1739322763559,0.00122387,96174.0,96173.0,0.22701035]
[1739322764363,0.00122387,96174.0,96173.0,0.54831035]
[1739322765015,0.207936,96184.0,96175.0,0.0788]
[1739322765160,0.155959,96179.0,96178.0,0.0788]
[1739322765366,0.155959,96179.0,96178.0,0.22860365]
[1739322767122,0.157959,96179.0,96178.0,0.22860365]
[1739322767515,0.160959,96179.0,96178.0,0.22860365]
[1739322768283,0.158959,96179.0,96178.0,0.22860365]
[1739322768658,0.159959,96179.0,96178.0,0.22860365]
[1739322768863,0.156959,96179.0,96178.0,0.22860365]
[1739322769229,0.160959,96179.0,96178.0,0.22860365]
[1739322769890,0.155959,96179.0,96178.0,0.22860365]
[1739322771991,0.156959,96179.0,96178.0,0.23060365]
[1739322775017,0.156959,96179.0,96178.0,0.23071025]
[1739322776366,0.306959,96179.0,96178.0,0.0021066]
[1739322777755,0.308959,96179.0,96178.0,0.0021066]
[1739322777964,0.307959,96179.0,96178.0,0.0001066]
[1739322778168,0.314959,96179.0,96178.0,0.0001066]
[1739322778373,0.33444641,96179.0,96178.0,0.0817066]
[1739322778829,0.32744641,96179.0,96178.0,0.0817066]
[1739322779140,0.32844641,96179.0,96178.0,0.0817066]
[1739322779506,0.32544641,96179.0,96178.0,0.0817066]
[1739322779890,0.307959,96179.0,96178.0,0.0837066]
[1739322780091,0.306959,96179.0,96178.0,0.0837066]
[1739322780292,0.001,96179.0,96178.0,0.0837066]
[1739322780851,0.15696,96179.0,96178.0,0.0837066]
[1739322784626,0.15696,96179.0,96178.0,0.0021066]
[1739322785534,0.15596,96179.0,96178.0,0.0001066]
[1739322786036,0.16696,96179.0,96178.0,0.0001066]
[1739322786240,0.18645625,96179.0,96178.0,0.0001066]
[1739322786537,0.17545625,96179.0,96178.0,0.0001066]
[1739322786738,0.18145625,96179.0,96178.0,0.0001066]
[1739322787183,0.02849625,96179.0,96173.0,0.0001067]
[1739322787395,0.305967,96174.0,96173.0,0.0001067]
[1739322788195,0.32546668,96174.0,96173.0,0.0001067]
[1739322788608,0.32746668,96174.0,96173.0,0.0001067]
[1739322788941,0.32946668,96174.0,96173.0,0.0001067]
[1739322789407,0.32746668,96174.0,96173.0,0.0001067]
[1739322790015,0.33746668,96174.0,96173.0,0.0001067]
[1739322790353,0.33546668,96174.0,96173.0,0.0001067]
[1739322790636,0.34046668,96174.0,96173.0,0.0001067]
[1739322791193,0.35676197,96174.0,96173.0,0.0001067]
[1739322791388,0.34176197,96174.0,96173.0,0.0001067]
[1739322791835,0.38353205,96174.0,96173.0,0.0001067]
[1739322792415,0.37353205,96174.0,96173.0,0.0001067]
[1739322792962,0.35442139,96174.0,96173.0,0.0001067]
[1739322793168,0.33942139,96174.0,96173.0,0.0001067]
[1739322794055,0.34442139,96174.0,96171.0,0.0002]
[1739322794264,0.15597,96172.0,96171.0,0.0002]
[1739322794693,0.15393939,96172.0,96171.0,0.0002]
[1739322795506,0.17343907,96172.0,96171.0,0.0002]
[1739322796071,0.17943907,96172.0,96171.0,0.0002]
[1739322796497,0.18243907,96172.0,96171.0,0.0002]
[1739322796834,0.17943907,96172.0,96171.0,0.0002]
[1739322797026,0.18243907,96172.0,96171.0,0.0002]
[1739322797415,0.17943907,96172.0,96171.0,0.0002]
[1739322797595,0.18243907,96172.0,96171.0,0.0002]
[1739322798003,0.17343907,96172.0,96171.0,0.0002]
[1739322798448,0.17943907,96172.0,96171.0,0.0002]
[1739322799289,0.17643907,96172.0,96171.0,0.0002]
[1739322799486,0.17343907,96172.0,96171.0,0.0002]
[1739322799688,0.17743907,96172.0,96171.0,0.0002]
[1739322799909,0.17943907,96172.0,96171.0,0.0002]
[1739322800509,0.32943907,96172.0,96171.0,0.0002]
[1739322800805,0.32943907,96172.0,96171.0,0.0003066]
[1739322800969,0.32543907,96172.0,96171.0,0.0001066]
[1739322801187,0.15,96171.0,96154.0,0.0782]
[1739322801401,0.155998,96155.0,96154.0,0.0782]
[1739322802858,0.17549768,96155.0,96154.0,0.0802]
[1739322803464,0.17549768,96155.0,96154.0,0.002]
[1739322804499,0.32549768,96155.0,96154.0,0.002]
[1739322805173,0.32549768,96155.0,96140.0,0.0485]
[1739322805174,0.15602,96141.0,96140.0,0.0485]
[1739322806863,0.15702,96141.0,96140.0,0.0485]
[1739322807312,0.20768743,96141.0,96140.0,0.0495]
[1739322807476,0.20668743,96141.0,96140.0,0.0495]
[1739322807873,0.20668743,96141.0,96140.0,0.0485]
[1739322808431,0.20668743,96141.0,96140.0,0.001]
[1739322808560,0.17551968,96141.0,96140.0,0.001]
[1739322809260,0.17551968,96141.0,96138.0,0.0001066]
[1739322809407,0.156024,96139.0,96138.0,0.0001066]
[1739322810215,0.20667021,96139.0,96138.0,0.0001066]
[1739322811453,0.20667021,96139.0,96138.0,0.0011066]
[1739322812516,0.20667021,96139.0,96138.0,0.0001066]
[1739322813022,0.20767021,96139.0,96138.0,0.0001066]
[1739322813226,0.20667021,96139.0,96138.0,0.0001066]
[1739322813838,0.20667021,96139.0,96138.0,0.0011066]
[1739322814245,0.20667021,96139.0,96138.0,0.0001066]
[1739322814666,0.20767021,96139.0,96138.0,0.0011066]
[1739322814967,0.17652368,96139.0,96138.0,0.0011066]
[1739322815186,0.17652368,96139.0,96138.0,0.1324066]
[1739322816758,0.17552368,96139.0,96138.0,0.1314066]
[1739322816954,0.01949968,96139.0,96138.0,0.23391025]
[1739322817646,0.02049968,96139.0,96138.0,0.23491025]
[1739322818090,0.01949968,96139.0,96138.0,0.23391025]
[1739322818322,0.001,96139.0,96138.0,0.23491025]
[1739322819682,0.157024,96139.0,96138.0,0.23491025]
[1739322823387,0.001,96139.0,96138.0,0.23491025]
[1739322823934,0.02047261,96139.0,96138.0,0.23491025]
[1739322824361,0.17649661,96139.0,96138.0,0.23491025]
[1739322824958,0.157024,96139.0,96138.0,0.23491025]
[1739322827394,0.17650538,96139.0,96138.0,0.23491025]
[1739322827664,0.17650538,96139.0,96138.0,0.1324066]
[1739322828381,0.17650538,96139.0,96138.0,0.0494066]
[1739322828635,0.17650538,96139.0,96138.0,0.0011066]
[1739322829443,0.32550538,96139.0,96138.0,0.0001066]
[1739322829928,0.32750538,96139.0,96138.0,0.0001066]
[1739322830296,0.32650538,96139.0,96138.0,0.0001066]
[1739322830698,0.32950538,96139.0,96138.0,0.0001066]
[1739322830835,0.32850538,96139.0,96138.0,0.0001066]
[1739322831061,0.32550538,96139.0,96138.0,0.0001066]
[1739322831292,0.32550538,96139.0,96138.0,0.0011066]
[1739322832818,0.32550538,96139.0,96138.0,0.0001066]
[1739322833318,0.32550538,96139.0,96138.0,0.0011066]
[1739322837330,0.32550538,96139.0,96138.0,0.0001066]
[1739322837681,0.32550538,96139.0,96138.0,0.0011066]
[1739322838738,0.32550538,96139.0,96138.0,0.0001066]
[1739322839205,0.32650538,96139.0,96138.0,0.0011066]
[1739322841823,0.32550538,96139.0,96138.0,0.0001066]
[1739322842220,0.32650538,96139.0,96138.0,0.0011066]
[1739322845892,0.307024,96139.0,96138.0,0.0011066]
[1739322849614,0.306024,96139.0,96138.0,0.0001066]
[1739322849937,0.309024,96139.0,96138.0,0.0001066]
[1739322850297,0.311024,96139.0,96138.0,0.0001066]
[1739322850498,0.309024,96139.0,96138.0,0.0001066]
[1739322850943,0.311024,96139.0,96138.0,0.0001066]
[1739322851149,0.306024,96139.0,96138.0,0.0001066]
[1739322851527,0.309024,96139.0,96138.0,0.0001066]
[1739322852306,0.308024,96139.0,96138.0,0.0001066]
[1739322852609,0.306024,96139.0,96138.0,0.0001066]
[1739322853818,0.307024,96139.0,96138.0,0.0001066]
[1739322855466,0.306024,96139.0,96138.0,0.0001066]
[1739322857072,0.30272385,96139.0,96138.0,0.0001066]
[1739322858164,0.30372385,96139.0,96138.0,0.0001066]
[1739322858437,0.30272385,96139.0,96138.0,0.0001066]
[1739322858972,0.31072385,96139.0,96138.0,0.0001066]
[1739322859305,0.31472385,96139.0,96138.0,0.0001066]
[1739322859909,0.31494772,96139.0,96138.0,0.0001066]
[1739322860304,0.30694772,96139.0,96138.0,0.0001066]
[1739322860503,0.30294772,96139.0,96138.0,0.0011066]
[1739322861116,0.30294772,96139.0,96138.0,0.0001066]
[1739322861344,0.30394772,96139.0,96138.0,0.0011066]
[1739322861977,0.30294772,96139.0,96138.0,0.0001066]
[1739322862560,0.30594772,96139.0,96138.0,0.0001066]
[1739322862792,0.33620123,96139.0,96138.0,0.0001066]
[1739322863469,0.34420123,96139.0,96138.0,0.0001066]
[1739322863684,0.34120123,96139.0,96138.0,0.0001066]
[1739322863942,0.33320123,96139.0,96138.0,0.0001066]
[1739322864172,0.34920123,96139.0,96138.0,0.0001066]
[1739322864393,0.34620123,96139.0,96138.0,0.0001066]
[1739322864622,0.35220123,96139.0,96138.0,0.0001066]
[1739322865267,0.19947738,96139.0,96135.0,0.0001066]
[1739322865468,0.306028,96136.0,96135.0,0.0001066]
[1739322867259,0.311028,96136.0,96135.0,0.0001066]
[1739322868035,0.42453165,96136.0,96135.0,0.0001066]
[1739322868238,0.44753165,96136.0,96135.0,0.0001066]
[1739322868377,1.11316265,96136.0,96135.0,0.0001066]
[1739322868990,0.329035,96132.0,96110.0,0.0495]
[1739322869188,0.43153865,96132.0,96110.0,0.0495]
[1739322869409,0.43153865,96132.0,96131.0,1e-06]
[1739322869895,0.98899565,96132.0,96131.0,1e-06]
[1739322870179,1.01003365,96132.0,96131.0,1e-06]
[1739322870672,0.98903365,96132.0,96131.0,1e-06]
[1739322870883,0.99603365,96132.0,96131.0,1e-06]
[1739322871083,0.98773665,96132.0,96131.0,1e-06]
[1739322871301,0.97524665,96132.0,96131.0,1e-06]
[1739322871700,0.96824665,96132.0,96131.0,1e-06]
[1739322871918,0.85791165,96132.0,96131.0,1e-06]
[1739322872128,0.69164265,96132.0,96131.0,1e-06]
[1739322872667,0.306069,96111.0,96110.0,0.0495]
[1739322873882,0.307069,96111.0,96110.0,0.0495]
[1739322875552,0.33160316,96111.0,96110.0,0.0495]
[1739322877147,0.306074,96108.0,96102.0,0.0805]
[1739322879567,0.308074,96108.0,96102.0,0.0805]
[1739322880331,0.310074,96108.0,96102.0,0.0805]
[1739322885311,0.308074,96108.0,96102.0,0.0805]
[1739322885509,0.313074,96108.0,96102.0,0.0805]
[1739322885915,0.309074,96108.0,96102.0,0.0805]
[1739322886149,0.306074,96108.0,96102.0,0.0805]
[1739322886362,0.311074,96108.0,96102.0,0.0805]
[1739322896666,0.005,96108.0,96102.0,0.0805]
[1739322897516,0.161074,96108.0,96102.0,0.0805]
[1739322900427,0.161074,96108.0,96107.0,0.1261066]
[1739322901444,0.005,96108.0,96107.0,0.22861025]
[1739322901646,0.005,96108.0,96107.0,0.25147128]
[1739322902457,0.002,96108.0,96107.0,0.25147128]
[1739322902677,0.02363903,96116.0,96109.0,0.0802]
[1739322902858,0.208081,96117.0,96110.0,0.10250365]
[1739322903073,0.156064,96114.0,96113.0,0.0802]
[1739322905381,0.156064,96114.0,96113.0,0.0812]
[1739322911315,0.15628787,96114.0,96113.0,0.0812]
[1739322911932,0.30628787,96114.0,96113.0,0.001]
[1739322912611,0.306066,96113.0,96112.0,0.0458]
[1739322913588,0.306066,96113.0,96107.0,0.0001066]
[1739322913589,0.156074,96108.0,96107.0,0.0001066]
[1739322913827,0.306074,96108.0,96107.0,0.0001066]
[1739322915549,0.33438162,96108.0,96107.0,0.0001066]
[1739322915974,0.35794734,96108.0,96107.0,0.0001066]
[1739322916382,0.35894734,96108.0,96107.0,0.0001066]
[1739322916583,0.35894734,96108.0,96107.0,6e-07]
[1739322916584,0.50235099,96108.0,96107.0,6e-07]
[1739322916699,0.53135099,96108.0,96107.0,6e-07]
[1739322917327,0.51935099,96108.0,96107.0,6e-07]
[1739322917583,0.51335099,96108.0,96107.0,6e-07]
[1739322917964,0.53329688,96108.0,96107.0,6e-07]
[1739322918177,0.55529688,96108.0,96107.0,6e-07]
[1739322918607,0.58581889,96108.0,96107.0,6e-07]
[1739322919150,0.58581889,96108.0,96081.0,0.0001066]
[1739322919151,0.199316,96082.0,96081.0,0.0001066]
[1739322919352,0.199316,96082.0,96057.0,0.08333811]
[1739322919353,0.306155,96058.0,96057.0,0.08333811]
[1739322919685,0.208204,96060.0,96041.0,0.09350457]
[1739322919686,0.306165,96052.0,96041.0,0.09350457]
[1739322920523,0.32706746,96052.0,96041.0,0.09350457]
[1739322920949,0.34438357,96052.0,96041.0,0.09350457]
[1739322921880,0.34338357,96052.0,96041.0,0.09350457]
[1739322922798,0.34438357,96052.0,96041.0,0.09350457]
[1739322923443,0.34438357,96052.0,96041.0,0.0001066]
[1739322923652,0.34438357,96052.0,96051.0,0.0003066]
[1739322923864,0.34438357,96052.0,96051.0,0.1258066]
[1739322928330,0.01731611,96052.0,96051.0,0.1258066]
[1739322928497,0.001,96052.0,96051.0,0.1258066]
[1739322928696,0.157165,96052.0,96051.0,0.1258066]
[1739322932709,0.307165,96052.0,96051.0,0.0003066]
[1739322933975,0.320165,96052.0,96051.0,0.0003066]
[1739322934967,0.319165,96052.0,96051.0,0.0003066]
[1739322935395,0.312165,96052.0,96051.0,0.0003066]
[1739322935560,0.319165,96052.0,96051.0,0.0003066]
[1739322936059,0.306165,96052.0,96051.0,0.0003066]
[1739322936260,0.314165,96052.0,96051.0,0.0003066]
[1739322936703,0.318165,96052.0,96051.0,0.0003066]
[1739322937289,0.310165,96052.0,96051.0,0.0003066]
[1739322937480,0.32248179,96052.0,96051.0,0.0003066]
[1739322938916,0.33048179,96052.0,96051.0,0.0003066]
[1739322939116,0.33448179,96052.0,96051.0,0.0003066]
[1739322939451,0.32248179,96052.0,96051.0,0.0003066]
[1739322939662,0.32648179,96052.0,96051.0,0.0003066]
[1739322939817,0.32948179,96052.0,96051.0,0.0003066]
[1739322940162,0.17948179,96052.0,96051.0,0.0788066]
[1739322940371,0.18348179,96052.0,96051.0,0.0788066]
[1739322940568,0.32648179,96052.0,96051.0,0.0788066]
[1739322941956,0.32248179,96052.0,96051.0,0.0788066]
[1739322942153,0.32548179,96052.0,96051.0,0.0788066]
[1739322942569,0.33248179,96052.0,96051.0,0.0788066]
[1739322942998,0.32548179,96052.0,96051.0,0.0788066]
[1739322943388,0.33048179,96052.0,96051.0,0.0788066]
[1739322943988,0.008,96052.0,96051.0,0.0788066]
[1739322944188,0.164165,96052.0,96051.0,0.1239066]
[1739322945792,0.008,96052.0,96051.0,0.1239066]
[1739322945964,0.008,96052.0,96051.0,0.23880091]
[1739322946164,0.008,96052.0,96051.0,0.22641025]
[1739322948110,0.005,96052.0,96051.0,0.22641025]
[1739322948621,0.156163,96053.0,96051.0,0.22641025]
[1739322948809,0.156163,96053.0,96052.0,0.10250365]
[1739322949928,0.157163,96053.0,96052.0,0.10250365]
[1739322950345,0.156163,96053.0,96052.0,0.10250365]
[1739322951754,0.157163,96053.0,96052.0,0.10350365]
[1739322952593,0.152163,96053.0,96052.0,0.10350365]
[1739322956738,0.152163,96053.0,96052.0,0.12624468]
[1739322956950,0.001,96053.0,96052.0,0.17910365]
[1739322957164,0.157163,96053.0,96052.0,0.17910365]
[1739322958593,0.001,96053.0,96052.0,0.17910365]
[1739322958732,0.157163,96053.0,96052.0,0.17910365]
[1739322961765,0.001,96053.0,96052.0,0.21717198]
[1739322961970,0.001,96053.0,96052.0,0.26417198]
[1739322963201,0.001,96053.0,96052.0,0.22610365]
[1739322963847,0.02152468,96062.0,96053.0,0.0756]
[1739322964049,0.156156,96058.0,96054.0,0.10250365]
[1739322964413,0.156153,96060.0,96054.0,0.10250365]
[1739322964659,0.208201,96061.0,96054.0,0.10250365]
[1739322964890,0.156152,96060.0,96054.0,0.10250365]
[1739322965118,0.156152,96060.0,96054.0,0.16148397]
[1739322965933,0.156156,96058.0,96054.0,0.16248397]
[1739322966128,0.156152,96060.0,96054.0,0.16248397]
[1739322966426,0.156152,96060.0,96054.0,0.16148397]
[1739322966925,0.156152,96060.0,96055.0,0.0756]
[1739322967176,0.15615,96061.0,96056.0,0.10250365]
[1739322967421,0.15615,96061.0,96058.0,0.047]
[1739322967657,0.15615,96061.0,96059.0,0.10250365]
[1739322967852,0.001,96060.0,96059.0,0.10250365]
[1739322967988,0.002,96060.0,96059.0,0.10250365]
[1739322968354,0.15615,96061.0,96059.0,0.10250365]
[1739322968558,0.001,96061.0,96059.0,0.10250365]
[1739322968726,0.157151,96061.0,96059.0,0.10250365]
[1739322968932,0.156151,96061.0,96059.0,0.10250365]
[1739322969284,0.1551149,96061.0,96059.0,0.10450365]
[1739322969740,0.208196,96063.0,96059.0,0.10450365]
[1739322970619,0.156149,96062.0,96059.0,0.10450365]
[1739322970825,0.00022408,96064.0,96059.0,0.10250365]
[1739322971077,0.00022408,96064.0,96061.0,0.15615]
[1739322971255,0.00022408,96064.0,96062.0,0.10250365]
[1739322972402,0.15637008,96064.0,96062.0,0.10250365]
[1739322972568,0.15637008,96064.0,96062.0,0.10450365]
[1739322972781,0.15737008,96064.0,96062.0,0.10450365]
[1739322973640,0.156147,96063.0,96062.0,0.10450365]
[1739322973813,0.156147,96063.0,96062.0,0.10250365]
[1739322974175,0.156147,96063.0,96062.0,0.10450365]
[1739322974353,0.00122408,96064.0,96062.0,0.10450365]
[1739322974558,0.156147,96063.0,96062.0,0.10250365]
[1739322974854,0.001,96063.0,96062.0,0.10450365]
[1739322975680,0.157147,96063.0,96062.0,0.10450365]
[1739322978174,0.001,96063.0,96062.0,0.10450365]
[1739322979842,0.157147,96063.0,96062.0,0.10450365]
[1739322980040,0.157147,96063.0,96062.0,0.002]
[1739322980850,0.156163,96053.0,96051.0,0.0003066]
[1739322983225,0.156163,96053.0,96052.0,0.01319803]
[1739322983480,0.157163,96053.0,96052.0,0.01519803]
[1739322984013,0.157163,96053.0,96052.0,0.0021067]
[1739322985026,0.17624129,96053.0,96052.0,0.0021067]
[1739322988275,0.17624129,96053.0,96052.0,0.0015726]
[1739322994164,0.208211,96057.0,96052.0,0.0015726]
[1739322994406,0.156163,96053.0,96052.0,0.0015726]
[1739322994636,0.156163,96053.0,96052.0,0.01481052]
[1739322995963,0.156163,96053.0,96052.0,0.01491722]
[1739322996158,0.15638708,96053.0,96052.0,0.01334462]
[1739322996890,0.15638708,96053.0,96052.0,0.01634462]
[1739322997390,0.15638708,96053.0,96052.0,0.0001067]
[1739322997801,0.15738708,96053.0,96052.0,0.0041067]
[1739322999164,0.15638708,96053.0,96052.0,0.0001067]
[1739322999564,0.15638708,96053.0,96052.0,0.0021067]
[1739323000016,0.15638708,96053.0,96052.0,0.0001067]
[1739323000336,0.15638708,96053.0,96052.0,0.0031067]
[1739323000502,0.15738708,96053.0,96052.0,0.0031067]
[1739323001335,0.15638708,96053.0,96052.0,0.0001067]
[1739323002752,0.15738708,96053.0,96052.0,0.0081067]
[1739323003188,0.15638708,96053.0,96052.0,0.0001067]
[1739323003455,0.15738708,96053.0,96052.0,0.0081067]
[1739323004099,0.15638708,96053.0,96052.0,0.0001067]
[1739323004387,0.15738708,96053.0,96052.0,0.0081067]
[1739323005805,0.15638708,96053.0,96052.0,0.0001067]
[1739323006300,0.15638708,96053.0,96052.0,0.0031067]
[1739323007044,0.15638708,96053.0,96052.0,0.0001067]
[1739323007557,0.15638708,96053.0,96052.0,0.0031067]
[1739323009495,0.15638708,96053.0,96052.0,0.0001067]
[1739323009624,0.15638708,96053.0,96052.0,0.0031067]
[1739323010742,0.34828708,96053.0,96052.0,0.0031067]
[1739323011890,0.34828708,96053.0,96052.0,0.0001067]
[1739323012297,0.45079073,96053.0,96052.0,0.0001067]
[1739323012502,0.15,96040.0,96015.0,0.0492]
[1739323012703,0.156223,96016.0,96015.0,0.0492]
[1739323012918,0.15494938,96016.0,96015.0,0.0492]
[1739323013677,0.15494938,96016.0,96015.0,0.15270365]
[1739323014529,0.15494938,96016.0,96015.0,0.001]
[1739323015106,0.208284,96023.0,96006.0,0.0819]
[1739323015331,0.15623,96012.0,96006.0,0.0819]
[1739323015552,0.15418943,96012.0,96006.0,0.0819]
[1739323017274,0.17323071,96012.0,96006.0,0.0819]
[1739323017607,0.17323071,96012.0,95993.0,0.0145922]
[1739323017608,0.17323071,96012.0,95995.0,0.0806]
[1739323018366,0.17423071,96012.0,96011.0,0.0072]
[1739323019333,0.17323071,96012.0,96011.0,0.0002]
[1739323019826,0.17823071,96012.0,96011.0,0.0002]
[1739323019998,0.17823071,96012.0,96011.0,0.0003066]
[1739323020603,0.19455233,96012.0,96011.0,0.0003066]
[1739323021400,0.20355233,96012.0,96011.0,0.0013066]
[1739323022047,0.19455233,96012.0,96011.0,0.0003066]
[1739323022245,0.20155233,96012.0,96011.0,0.0013066]
[1739323022786,0.18955233,96012.0,96011.0,0.0003066]
[1739323023002,0.19355233,96012.0,96011.0,0.0003066]
[1739323023549,0.19555233,96012.0,96011.0,0.0003066]
[1739323024166,0.19355233,96012.0,96011.0,0.0003066]
[1739323024454,0.19155233,96012.0,96011.0,0.0003066]
[1739323024784,0.19355233,96012.0,96011.0,0.0003066]
[1739323025164,0.19155233,96012.0,96011.0,0.0003066]
[1739323025595,0.19155233,96012.0,96011.0,0.0013066]
[1739323025867,0.19155233,96012.0,96011.0,0.0819066]
[1739323026295,0.18955233,96012.0,96011.0,0.0819066]
[1739323026723,0.19055233,96012.0,96011.0,0.0819066]
[1739323026864,0.18955233,96012.0,96011.0,0.0819066]
[1739323027062,0.17323071,96012.0,96011.0,0.1318066]
[1739323027267,0.17523071,96012.0,96011.0,0.1318066]
[1739323027507,0.17323071,96012.0,96011.0,0.1308066]
[1739323028119,0.01904128,96012.0,96011.0,0.1308066]
[1739323028435,0.16023,96012.0,96011.0,0.1308066]
[1739323028947,0.15623,96012.0,96011.0,0.1308066]